bitfinex-derivatives/quotes_BTCF0:USTF0_20240829
["timestamp","ask_amount","ask_price","bid_price","bid_amount"]
[1724948351830,0.02090321,60760.0,60759.0,0.082271]
[1724948352440,0.02090321,60760.0,60752.0,0.04923789]
[1724948352441,0.082279,60753.0,60752.0,0.04923789]
[1724948352729,0.082279,60753.0,60752.0,0.082281]
[1724948353326,0.082276,60756.0,60755.0,0.082276]
[1724948355036,0.082276,60756.0,60755.0,0.086276]
[1724948355422,0.082276,60756.0,60755.0,0.088276]
[1724948355621,0.082276,60756.0,60755.0,0.087276]
[1724948356025,0.082276,60756.0,60755.0,0.085276]
[1724948356226,0.082276,60756.0,60755.0,0.087276]
[1724948356936,0.2802468,60760.0,60755.0,0.4988]
[1724948356937,0.0002468,60760.0,60755.0,0.4988]
[1724948357134,0.0002468,60760.0,60759.0,0.164542]
[1724948358332,0.0022468,60760.0,60759.0,0.164542]
[1724948358927,0.0042468,60760.0,60759.0,0.164542]
[1724948363035,0.0042468,60760.0,60759.0,0.246813]
[1724948363332,0.08474958,60771.0,60759.0,1.176031]
[1724948363528,0.0038,60775.0,60766.0,0.41007563]
[1724948363734,0.3646,60782.0,60781.0,0.082241]
[1724948363940,0.3608,60782.0,60781.0,0.082241]
[1724948364142,0.46248189,60782.0,60781.0,0.082241]
[1724948364934,0.3608,60782.0,60781.0,0.082241]
[1724948365335,0.3608,60782.0,60781.0,0.083241]
[1724948365336,0.3748,60782.0,60781.0,0.083241]
[1724948365538,0.3888,60782.0,60781.0,0.083241]
[1724948366251,0.55328,60782.0,60781.0,0.001]
[1724948366441,0.65045133,60782.0,60781.0,0.001]
[1724948366738,1.14400769,60782.0,60781.0,0.001]
[1724948366947,1.04684,60782.0,60781.0,0.001]
[1724948367145,1.0844174,60782.0,60781.0,0.001]
[1724948367336,1.14400769,60782.0,60781.0,0.001]
[1724948367946,1.04684,60782.0,60781.0,0.001]
[1724948368935,1.61720804,60782.0,60775.0,0.0002468]
[1724948369138,0.082259,60768.0,60767.0,0.0038]
[1724948369336,0.6408,60768.0,60756.0,0.0038]
[1724948369538,0.3608,60763.0,60760.0,0.082269]
[1724948369937,0.082269,60761.0,60760.0,0.082269]
[1724948370249,0.3608,60763.0,60762.0,0.082267]
[1724948370445,0.082269,60761.0,60758.0,0.082272]
[1724948370746,0.3608,60763.0,60751.0,0.3413514]
[1724948370747,0.082272,60759.0,60751.0,0.3413514]
[1724948371046,0.3598,60757.0,60756.0,0.082274]
[1724948371245,0.082267,60762.0,60761.0,0.082269]
[1724948372648,0.3638,60763.0,60762.0,0.082267]
[1724948373045,0.3608,60763.0,60762.0,0.082267]
[1724948373244,0.3608,60763.0,60752.0,0.13155663]
[1724948373245,0.3608,60763.0,60758.0,0.082272]
[1724948373548,0.3608,60763.0,60751.0,0.0038]
[1724948373549,0.082269,60761.0,60760.0,0.08227]
[1724948373743,0.011,60762.0,60761.0,0.082267]
[1724948374250,0.082267,60762.0,60761.0,0.082267]
[1724948374840,0.092267,60762.0,60761.0,0.082267]
[1724948375040,0.103267,60762.0,60761.0,0.083267]
[1724948376045,0.18418771,60762.0,60761.0,0.001]
[1724948377047,0.18413082,60762.0,60761.0,0.001]
[1724948377347,0.103267,60762.0,60761.0,0.001]
[1724948377849,0.18416508,60762.0,60761.0,0.083269]
[1724948378049,0.103267,60762.0,60761.0,0.083269]
[1724948379156,0.18420939,60762.0,60761.0,0.083269]
[1724948379343,0.021,60762.0,60761.0,0.083269]
[1724948379948,0.103267,60762.0,60761.0,0.083269]
[1724948380256,0.021,60762.0,60761.0,0.083269]
[1724948381054,0.021,60762.0,60761.0,0.526338]
[1724948381958,0.021,60762.0,60761.0,0.61697449]
[1724948382257,0.0002468,60767.0,60766.0,0.164524]
[1724948382458,0.0002468,60767.0,60766.0,0.525324]
[1724948382653,0.0002468,60767.0,60766.0,0.607586]
[1724948382844,0.3646,60778.0,60776.0,0.082248]
[1724948382845,0.08094239,60777.0,60776.0,0.082248]
[1724948383159,0.44174239,60778.0,60777.0,0.082247]
[1724948383357,0.4417545,60778.0,60777.0,0.082247]
[1724948383550,0.4417545,60778.0,60777.0,0.164494]
[1724948383551,0.3608,60778.0,60777.0,0.164494]
[1724948384355,0.3748,60778.0,60777.0,0.18435089]
[1724948385254,0.021,60778.0,60777.0,0.18535089]
[1724948385760,0.021,60778.0,60777.0,1.36119789]
[1724948385969,0.021,60778.0,60777.0,0.26759789]
[1724948386156,0.021,60778.0,60777.0,0.76119789]
[1724948386549,0.0002468,60784.0,60783.0,0.246717]
[1724948386861,0.06481149,60792.0,60783.0,1.49516]
[1724948387055,0.05481149,60796.0,60791.0,0.6408]
[1724948387357,0.3608,60804.0,60803.0,0.082212]
[1724948389870,0.3608,60804.0,60803.0,0.1017837]
[1724948390158,0.3608,60804.0,60803.0,0.1027837]
[1724948390564,0.3608,60804.0,60803.0,0.1017837]
[1724948390748,0.3608,60804.0,60803.0,0.1027837]
[1724948390953,0.3618,60804.0,60803.0,0.1037837]
[1724948391652,0.001,60804.0,60803.0,0.4645837]
[1724948392255,0.001,60804.0,60803.0,0.5467957]
[1724948396467,0.001,60804.0,60803.0,1.0401957]
[1724948396855,0.0002468,60810.0,60809.0,0.362204]
[1724948398358,0.0002468,60810.0,60809.0,0.363204]
[1724948398965,0.0012468,60810.0,60809.0,0.364204]
[1724948400272,0.0012468,60810.0,60809.0,0.446408]
[1724948400468,0.0012468,60810.0,60809.0,0.528612]
[1724948400669,0.0012468,60810.0,60809.0,0.446408]
[1724948401063,0.0012468,60810.0,60809.0,1.539768]
[1724948401576,1e-08,60810.0,60809.0,1.621972]
[1724948402064,1e-08,60810.0,60809.0,1.539768]
[1724948403768,1e-08,60810.0,60809.0,1.621972]
[1724948404666,1e-08,60810.0,60809.0,1.539768]
[1724948404961,1e-08,60810.0,60809.0,0.939768]
[1724948405475,1e-08,60810.0,60809.0,0.084204]
[1724948405672,0.16440401,60810.0,60809.0,0.002]
[1724948405970,0.082217,60799.0,60798.0,0.0038]
[1724948406172,0.082217,60799.0,60797.0,0.0002468]
[1724948406173,0.164436,60798.0,60797.0,0.0002468]
[1724948406369,0.164436,60798.0,60787.0,0.0038]
[1724948406370,0.08222,60797.0,60787.0,0.0038]
[1724948406573,0.3608,60789.0,60785.0,0.082236]
[1724948406872,0.3608,60789.0,60788.0,0.082232]
[1724948408085,0.443031,60789.0,60788.0,0.007]
[1724948408975,0.443031,60789.0,60788.0,0.015]
[1724948409676,0.445031,60789.0,60788.0,0.008]
[1724948410482,0.3688,60789.0,60788.0,0.083232]
[1724948411177,0.3628,60789.0,60788.0,0.083232]
[1724948411478,0.3708,60789.0,60788.0,0.084232]
[1724948412265,0.3708,60789.0,60788.0,0.083232]
[1724948412773,0.3708,60789.0,60788.0,0.082232]
[1724948413077,0.3688,60789.0,60788.0,0.10338951]
[1724948413467,0.3748,60789.0,60788.0,0.10338951]
[1724948414582,0.3748,60789.0,60788.0,0.10438951]
[1724948419271,0.3748,60789.0,60788.0,0.084232]
[1724948419769,0.457031,60789.0,60788.0,0.084232]
[1724948419969,0.457031,60789.0,60788.0,0.002]
[1724948420165,0.082239,60783.0,60782.0,0.0002468]
[1724948420384,0.525278,60783.0,60782.0,0.0002468]
[1724948420573,1.018838,60783.0,60782.0,0.0002468]
[1724948420769,1.750677,60783.0,60782.0,1e-08]
[1724948421379,1.669438,60783.0,60782.0,1e-08]
[1724948421679,0.575878,60783.0,60782.0,1e-08]
[1724948421973,0.575878,60783.0,60782.0,0.00100001]
[1724948422166,0.582878,60783.0,60782.0,0.00100001]
[1724948423486,0.3688,60783.0,60782.0,0.08324001]
[1724948423674,0.009,60783.0,60782.0,0.08324001]
[1724948423880,0.011,60783.0,60782.0,0.08424001]
[1724948431676,0.011,60783.0,60782.0,0.10426067]
[1724948433488,0.011,60783.0,60782.0,0.08424001]
[1724948435101,0.093239,60783.0,60782.0,0.08424001]
[1724948435479,0.1741935,60783.0,60782.0,0.08424001]
[1724948436784,0.093239,60783.0,60782.0,0.08424001]
[1724948437089,0.093239,60783.0,60780.0,0.0203455]
[1724948437090,0.082249,60776.0,60775.0,0.082248]
[1724948437585,0.082252,60773.0,60772.0,0.046]
[1724948438382,0.082252,60773.0,60772.0,0.06630369]
[1724948438595,0.0002468,60779.0,60772.0,0.42710369]
[1724948438895,0.0824908,60779.0,60778.0,0.082246]
[1724948440187,0.0854908,60779.0,60778.0,0.082246]
[1724948440585,0.16671729,60779.0,60778.0,0.082246]
[1724948440781,0.4462908,60779.0,60778.0,0.082246]
[1724948441181,0.4492908,60779.0,60772.0,0.42710369]
[1724948441391,0.082252,60774.0,60773.0,0.082252]
[1724948442786,0.082247,60777.0,60776.0,0.082247]
[1724948443583,0.16344675,60777.0,60776.0,0.082247]
[1724948443789,0.082247,60777.0,60776.0,0.082247]
[1724948444198,0.083247,60777.0,60776.0,0.082247]
[1724948445589,0.001,60777.0,60776.0,0.082247]
[1724948445796,0.001,60777.0,60776.0,0.444495]
[1724948446403,0.001,60777.0,60776.0,0.164495]
[1724948447090,0.0659762,60777.0,60776.0,0.164495]
[1724948447397,0.001,60777.0,60776.0,0.164495]
[1724948447697,0.001,60777.0,60776.0,0.082247]
[1724948447902,0.001,60777.0,60772.0,0.046]
[1724948448091,0.52428125,60774.0,60773.0,0.082252]
[1724948448286,0.082252,60773.0,60772.0,0.046]
[1724948448487,0.08226,60767.0,60766.0,0.0002468]
[1724948448693,0.44306,60767.0,60766.0,0.0002468]
[1724948449092,0.52132,60767.0,60766.0,0.0002468]
[1724948449399,1.015,60767.0,60766.0,0.0002468]
[1724948449902,1.11010485,60767.0,60766.0,0.0102468]
[1724948450094,0.43706,60767.0,60766.0,0.0925088]
[1724948450799,0.44506,60767.0,60766.0,0.0935088]
[1724948451692,0.53024691,60767.0,60766.0,0.0835088]
[1724948451899,0.45517531,60767.0,60766.0,0.0845088]
[1724948452100,0.53624692,60767.0,60766.0,0.0845088]
[1724948452904,0.082275,60756.0,60755.0,0.0038]
[1724948453108,0.3608,60756.0,60751.0,0.082282]
[1724948453401,0.3608,60756.0,60747.0,0.0200477]
[1724948453701,0.3608,60750.0,60740.0,0.0038]
[1724948453891,0.3610367,60755.0,60738.0,0.047]
[1724948453892,0.3608,60744.0,60741.0,0.0478]
[1724948454093,0.082294,60742.0,60741.0,0.0478]
[1724948454293,0.07740931,60742.0,60741.0,0.0478]
[1724948454502,0.00411531,60742.0,60741.0,0.130096]
[1724948454899,0.08640931,60742.0,60741.0,0.0478]
[1724948455503,0.08140931,60742.0,60741.0,0.0478]
[1724948456204,0.08140931,60742.0,60740.0,0.013]
[1724948456205,0.082296,60741.0,60740.0,0.013]
[1724948456600,0.069296,60741.0,60740.0,0.013]
[1724948456796,0.082297,60740.0,60739.0,0.082298]
[1724948457701,0.001,60742.0,60741.0,0.082296]
[1724948457910,0.3618,60742.0,60741.0,0.082296]
[1724948458808,0.3618,60742.0,60735.0,0.34160527]
[1724948458809,0.082297,60741.0,60738.0,0.3608]
[1724948459005,0.082298,60739.0,60738.0,0.3608]
[1724948460108,0.082298,60739.0,60728.0,0.00176]
[1724948460109,0.082312,60729.0,60728.0,0.00176]
[1724948460301,0.082313,60729.0,60725.0,0.082316]
[1724948460503,0.3610468,60735.0,60727.0,0.3608]
[1724948460808,0.3610468,60735.0,60728.0,0.082313]
[1724948461014,0.0002468,60735.0,60729.0,0.082311]
[1724948461308,0.10269188,60735.0,60727.0,0.3608]
[1724948461615,0.0002468,60735.0,60730.0,0.08231]
[1724948461816,0.0002468,60735.0,60731.0,0.0496]
[1724948462110,0.0002468,60735.0,60734.0,0.082305]
[1724948462611,0.0002468,60735.0,60733.0,0.082306]
[1724948462908,0.0002468,60735.0,60732.0,0.4063]
[1724948463107,0.0012468,60735.0,60732.0,0.4063]
[1724948463801,0.0012468,60735.0,60732.0,0.488607]
[1724948463802,0.082306,60734.0,60732.0,0.488607]
[1724948464002,0.0042468,60735.0,60732.0,0.488607]
[1724948464003,0.0042468,60735.0,60732.0,0.4063]
[1724948464301,0.0012468,60735.0,60734.0,0.082305]
[1724948464497,0.0052468,60735.0,60734.0,0.082305]
[1724948465108,0.0032468,60735.0,60734.0,0.082305]
[1724948466108,0.0002468,60735.0,60734.0,0.65857]
[1724948466310,0.0062468,60735.0,60734.0,0.576265]
[1724948466813,0.0132468,60735.0,60734.0,0.67813674]
[1724948467010,0.0142468,60735.0,60734.0,0.10187174]
[1724948467210,0.0072468,60735.0,60734.0,0.67813674]
[1724948467407,0.01836413,60735.0,60734.0,0.67813674]
[1724948469016,0.01836413,60735.0,60734.0,0.10187174]
[1724948469209,0.01836413,60735.0,60734.0,0.18417674]
[1724948469416,0.01836413,60735.0,60734.0,0.10187174]
[1724948469912,0.01836413,60735.0,60726.0,0.3608]
[1724948470104,0.01836413,60735.0,60729.0,0.082311]
[1724948470105,0.00411733,60734.0,60729.0,0.082311]
[1724948470304,0.00411733,60734.0,60727.0,0.045]
[1724948470305,0.00411733,60734.0,60731.0,0.082308]
[1724948470512,0.082307,60733.0,60731.0,0.082308]
[1724948470718,0.08642533,60732.0,60731.0,0.082308]
[1724948471017,0.08642533,60732.0,60727.0,0.045]
[1724948471018,0.082312,60729.0,60727.0,0.127314]
[1724948471220,0.082312,60729.0,60728.0,0.082313]
[1724948471409,0.08642989,60729.0,60728.0,0.082313]
[1724948471611,0.60411789,60729.0,60717.0,0.00176]
[1724948471810,0.082332,60714.0,60713.0,0.0038]
[1724948472122,0.082332,60714.0,60712.0,1.64536]
[1724948472123,0.082334,60713.0,60712.0,1.66473393]
[1724948472307,0.64172,60718.0,60712.0,1.66473393]
[1724948472308,0.6408,60718.0,60712.0,1.66349393]
[1724948472908,0.00411883,60714.0,60713.0,0.082333]
[1724948473104,0.3608,60718.0,60712.0,1.66349393]
[1724948473105,0.3608,60718.0,60712.0,2.15885393]
[1724948473314,0.00024701,60720.0,60712.0,2.75761393]
[1724948473507,0.0038,60725.0,60715.0,0.7216]
[1724948473817,0.3646,60729.0,60718.0,0.082327]
[1724948474009,0.082323,60721.0,60716.0,0.082329]
[1724948474205,0.3608,60724.0,60718.0,0.082327]
[1724948474405,0.082322,60722.0,60718.0,0.082327]
[1724948474613,0.00411845,60721.0,60718.0,0.082327]
[1724948475021,0.00411845,60721.0,60719.0,0.082325]
[1724948475222,0.082322,60722.0,60719.0,0.082325]
[1724948475410,0.3608,60724.0,60714.0,0.3608]
[1724948475608,0.08644348,60720.0,60714.0,0.3608]
[1724948475810,0.00411848,60720.0,60719.0,0.362325]
[1724948476011,0.001,60725.0,60724.0,0.082319]
[1724948476222,0.001,60725.0,60724.0,0.362319]
[1724948476710,0.00024701,60727.0,60726.0,0.082316]
[1724948476916,0.00024701,60727.0,60726.0,0.443116]
[1724948478120,0.01324701,60727.0,60726.0,0.443116]
[1724948478511,0.01324701,60727.0,60726.0,0.46330594]
[1724948478708,0.09556201,60727.0,60726.0,0.38098994]
[1724948479124,0.09556201,60727.0,60726.0,0.42978994]
[1724948479324,0.3608,60735.0,60726.0,0.6896]
[1724948479325,0.31397401,60735.0,60726.0,0.6896]
[1724948479621,0.082299,60739.0,60733.0,0.28]
[1724948479622,0.0038,60739.0,60733.0,0.28]
[1724948479812,0.082302,60737.0,60733.0,0.28838901]
[1724948480012,0.3608,60738.0,60733.0,0.00838901]
[1724948480217,0.4431,60738.0,60732.0,0.082308]
[1724948480524,0.013,60735.0,60734.0,0.082304]
[1724948480714,0.013,60735.0,60734.0,0.09050031]
[1724948481116,0.013,60735.0,60734.0,0.082304]
[1724948481419,0.026,60735.0,60734.0,0.082304]
[1724948482014,0.013,60735.0,60734.0,0.082304]
[1724948482323,0.013,60735.0,60729.0,0.00024701]
[1724948482324,0.013,60735.0,60730.0,0.08231]
[1724948482526,0.082306,60734.0,60731.0,0.0496]
[1724948483533,0.081306,60734.0,60731.0,0.0496]
[1724948483719,0.095306,60734.0,60731.0,0.0496]
[1724948483918,0.095306,60734.0,60729.0,0.02042486]
[1724948484121,0.081311,60730.0,60729.0,0.00024701]
[1724948484721,0.442111,60730.0,60729.0,0.00024701]
[1724948486825,0.456111,60730.0,60729.0,0.00024701]
[1724948487325,0.456111,60730.0,60729.0,0.00124701]
[1724948487326,0.552422,60730.0,60729.0,0.00124701]
[1724948488427,1.728733,60730.0,60729.0,0.00124701]
[1724948488620,1.728733,60730.0,60720.0,0.0038]
[1724948488621,0.082323,60721.0,60720.0,0.0038]
[1724948488818,0.082331,60716.0,60715.0,0.08233]
[1724948490628,0.083331,60716.0,60715.0,0.08333]
[1724948492125,0.001,60716.0,60715.0,0.36333]
[1724948492528,0.001,60716.0,60715.0,0.08333]
[1724948496226,0.001,60716.0,60715.0,0.001]
[1724948496227,1.25978,60716.0,60715.0,0.001]
[1724948496627,1.30838,60716.0,60715.0,0.001]
[1724948496832,1.32814067,60716.0,60715.0,0.001]
[1724948497234,0.164668,60713.0,60712.0,1.54660394]
[1724948497430,0.443134,60713.0,60712.0,1.54532394]
[1724948497635,1.619588,60713.0,60712.0,1.54532394]
[1724948498031,1.019588,60713.0,60712.0,1.54532394]
[1724948498234,1.619588,60713.0,60712.0,1.54532394]
[1724948499127,1.619588,60713.0,60712.0,1.47052394]
[1724948499430,1.714922,60713.0,60712.0,1.36522494]
[1724948500232,0.164676,60710.0,60709.0,0.00024701]
[1724948500432,1.898636,60710.0,60709.0,0.00024701]
[1724948501438,1.911636,60710.0,60709.0,0.00024701]
[1724948502739,0.082351,60700.0,60699.0,0.0038]
[1724948503040,0.082351,60700.0,60688.0,0.0525]
[1724948503041,0.3608,60700.0,60688.0,0.0525]
[1724948503337,0.28,60702.0,60688.0,0.0487]
[1724948503338,0.443166,60689.0,60688.0,0.0487]
[1724948503746,0.082363,60692.0,60690.0,0.082364]
[1724948504048,0.082363,60692.0,60688.0,0.0487]
[1724948504235,0.01989938,60694.0,60688.0,0.131067]
[1724948504428,0.082366,60689.0,60688.0,0.131067]
[1724948504834,0.095366,60689.0,60688.0,0.131067]
[1724948505637,0.107366,60689.0,60688.0,0.131067]
[1724948506549,0.025,60689.0,60688.0,0.131067]
[1724948506940,0.024,60689.0,60688.0,0.131067]
[1724948507845,0.025,60689.0,60688.0,0.131067]
[1724948508243,0.107366,60689.0,60688.0,0.131068]
[1724948508643,0.025,60689.0,60688.0,0.131068]
[1724948509145,0.107366,60689.0,60688.0,0.131068]
[1724948509542,0.025,60689.0,60688.0,0.131068]
[1724948510536,0.107366,60689.0,60688.0,0.131068]
[1724948510947,0.025,60689.0,60688.0,0.131068]
[1724948511444,0.025,60689.0,60688.0,0.493436]
[1724948511650,0.025,60689.0,60688.0,0.575804]
[1724948511951,0.025,60689.0,60688.0,0.493436]
[1724948514048,0.00024701,60695.0,60694.0,0.164718]
[1724948514249,0.00024701,60695.0,60694.0,0.527077]
[1724948514552,1e-08,60695.0,60694.0,0.444718]
[1724948515644,1e-08,60695.0,60694.0,1.636498]
[1724948515845,0.01100001,60695.0,60694.0,1.357498]
[1724948516046,0.01100001,60695.0,60694.0,1.118857]
[1724948516249,0.0038,60706.0,60705.0,0.082344]
[1724948516447,0.082337,60711.0,60710.0,0.082338]
[1724948517045,0.01985624,60712.0,60711.0,0.082336]
[1724948517351,0.3608,60715.0,60712.0,0.082334]
[1724948517352,0.082333,60714.0,60712.0,0.082334]
[1724948517545,0.082333,60714.0,60713.0,0.082334]
[1724948517742,0.3608,60715.0,60707.0,0.097]
[1724948518052,0.3608,60715.0,60709.0,0.082339]
[1724948518053,0.082337,60711.0,60709.0,0.082339]
[1724948518255,0.46294537,60715.0,60709.0,0.082339]
[1724948518550,0.46294537,60715.0,60707.0,0.097]
[1724948518551,0.38061437,60715.0,60707.0,0.097]
[1724948519142,0.082339,60709.0,60707.0,0.097]
[1724948519352,0.3608,60710.0,60705.0,0.00224701]
[1724948519353,0.082343,60706.0,60705.0,0.00224701]
[1724948519550,0.164686,60706.0,60705.0,0.00224701]
[1724948519742,0.082343,60706.0,60705.0,0.00124701]
[1724948519942,0.164686,60706.0,60705.0,0.00124701]
[1724948520147,0.164686,60706.0,60705.0,0.00024701]
[1724948520454,0.3608,60707.0,60706.0,0.082343]
[1724948520657,0.3608,60707.0,60706.0,0.131443]
[1724948522252,0.3608,60710.0,60709.0,0.082339]
[1724948522556,0.00024701,60718.0,60717.0,0.082328]
[1724948522747,0.00024701,60718.0,60717.0,0.362328]
[1724948523264,0.00024701,60718.0,60715.0,0.045]
[1724948523265,0.08257401,60718.0,60715.0,0.045]
[1724948523560,0.082328,60717.0,60715.0,0.127331]
[1724948523853,0.01524701,60718.0,60717.0,0.083328]
[1724948524560,0.08457401,60718.0,60717.0,0.001]
[1724948525263,0.66098101,60718.0,60717.0,0.001]
[1724948525455,0.66098101,60718.0,60711.0,0.3608]
[1724948525456,0.081335,60712.0,60711.0,0.3608]
[1724948525649,0.57765401,60718.0,60710.0,0.0466]
[1724948525650,0.082336,60711.0,60710.0,0.0466]
[1724948525856,0.443132,60714.0,60706.0,0.0957]
[1724948526363,0.08234,60709.0,60706.0,0.0957]
[1724948526555,0.08234,60709.0,60706.0,0.178043]
[1724948526760,0.08134,60709.0,60706.0,0.178043]
[1724948527263,0.082341,60708.0,60706.0,0.178043]
[1724948527451,0.082341,60708.0,60706.0,0.082343]
[1724948527657,0.082343,60706.0,60705.0,0.32154701]
[1724948528570,0.081343,60706.0,60705.0,0.32154701]
[1724948528760,0.081343,60706.0,60705.0,0.40389101]
[1724948528957,0.001,60709.0,60707.0,0.082341]
[1724948529168,0.003,60706.0,60705.0,0.40489101]
[1724948529463,0.003,60706.0,60705.0,0.76569101]
[1724948529667,0.012,60708.0,60707.0,0.082342]
[1724948529861,0.082338,60710.0,60707.0,0.082342]
[1724948530062,0.082338,60710.0,60705.0,0.68470701]
[1724948530063,0.3598,60714.0,60706.0,0.082343]
[1724948530454,0.3598,60714.0,60705.0,0.68570701]
[1724948530660,0.3598,60714.0,60705.0,0.76669101]
[1724948530661,0.082342,60707.0,60705.0,0.76669101]
[1724948530862,0.081342,60707.0,60705.0,0.44439101]
[1724948531060,0.081342,60707.0,60705.0,0.08359101]
[1724948531468,0.082343,60706.0,60705.0,0.00124701]
[1724948531668,0.164686,60706.0,60705.0,0.00124701]
[1724948532063,0.163686,60706.0,60705.0,0.00024701]
[1724948532562,0.081343,60706.0,60705.0,0.00124701]
[1724948532768,0.085343,60706.0,60705.0,0.00224701]
[1724948533268,0.096343,60706.0,60705.0,0.00224701]
[1724948533569,0.178686,60706.0,60705.0,0.00224701]
[1724948533770,0.096343,60706.0,60705.0,0.00224701]
[1724948534560,0.085343,60706.0,60705.0,0.00124701]
[1724948534867,0.099343,60706.0,60705.0,0.00224701]
[1724948535469,0.100343,60706.0,60705.0,0.08459101]
[1724948535767,0.019,60706.0,60705.0,0.08459101]
[1724948535978,0.019,60706.0,60705.0,0.08359101]
[1724948536164,0.019,60706.0,60705.0,0.08459101]
[1724948536666,0.014,60706.0,60705.0,0.08359101]
[1724948536870,0.019,60706.0,60705.0,0.08459101]
[1724948537172,0.005,60706.0,60705.0,0.08359101]
[1724948537471,0.019,60706.0,60705.0,0.10454406]
[1724948538061,0.019,60706.0,60705.0,0.18688806]
[1724948538666,0.017,60706.0,60705.0,0.18688806]
[1724948539272,0.017,60706.0,60705.0,0.54768806]
[1724948539465,0.017,60706.0,60705.0,0.46534406]
[1724948540577,0.017,60706.0,60705.0,0.54768806]
[1724948540760,0.017,60706.0,60705.0,0.63003206]
[1724948540960,0.45804404,60722.0,60717.0,0.082328]
[1724948541265,0.45804404,60722.0,60717.0,0.0907568]
[1724948541266,0.00024701,60718.0,60717.0,0.0907568]
[1724948542264,0.00524701,60718.0,60717.0,0.0917568]
[1724948542760,0.08757401,60718.0,60708.0,0.08234]
[1724948542969,0.082342,60707.0,60705.0,0.44439101]
[1724948543165,0.082342,60707.0,60706.0,0.127543]
[1724948543589,0.081342,60707.0,60706.0,0.127543]
[1724948543775,0.081342,60707.0,60706.0,0.14717685]
[1724948543976,0.080342,60707.0,60706.0,0.14717685]
[1724948544363,0.080342,60707.0,60706.0,0.14817685]
[1724948545471,0.082334,60713.0,60706.0,0.06683385]
[1724948545472,0.09748929,60713.0,60706.0,0.06683385]
[1724948545674,0.082334,60713.0,60712.0,0.082334]
[1724948545876,0.45828929,60715.0,60706.0,0.06683385]
[1724948545877,0.45912929,60715.0,60714.0,0.082332]
[1724948546075,0.45828929,60715.0,60714.0,0.082332]
[1724948546573,0.3608,60715.0,60714.0,0.082332]
[1724948547182,0.3608,60715.0,60714.0,0.083332]
[1724948547788,0.3678,60715.0,60714.0,0.084332]
[1724948547976,0.007,60715.0,60714.0,0.084332]
[1724948548176,0.089331,60715.0,60714.0,0.084332]
[1724948548372,0.007,60715.0,60714.0,0.084332]
[1724948548579,0.007,60715.0,60714.0,0.364332]
[1724948548778,0.01,60715.0,60714.0,0.412332]
[1724948549676,0.003,60715.0,60714.0,0.411332]
[1724948549979,0.008,60715.0,60714.0,0.412332]
[1724948550281,0.008,60715.0,60714.0,0.43262189]
[1724948550490,0.003,60715.0,60714.0,0.51395389]
[1724948550681,0.007,60715.0,60714.0,0.51495389]
[1724948550884,0.008,60715.0,60714.0,0.51495389]
[1724948551588,0.008,60715.0,60714.0,0.23495389]
[1724948551790,0.008,60715.0,60714.0,0.15262189]
[1724948554186,0.008,60715.0,60714.0,0.51342189]
[1724948554588,0.008,60715.0,60714.0,0.15262189]
[1724948558183,0.008,60715.0,60714.0,0.51342189]
[1724948560386,0.007,60715.0,60714.0,0.51342189]
[1724948560894,0.004,60715.0,60714.0,0.51242189]
[1724948561090,0.007,60715.0,60714.0,0.51342189]
[1724948563996,0.007,60715.0,60714.0,0.15262189]
[1724948565189,0.007,60715.0,60714.0,0.51495389]
[1724948565790,0.007,60715.0,60714.0,0.87575389]
[1724948568695,0.00024701,60718.0,60717.0,0.246984]
[1724948568998,0.00024701,60718.0,60717.0,0.741064]
[1724948570201,0.00024701,60718.0,60717.0,0.246984]
[1724948570390,0.00324701,60718.0,60717.0,0.247984]
[1724948570792,0.00324701,60718.0,60717.0,0.742064]
[1724948570993,0.08115017,60723.0,60722.0,0.164642]
[1724948571189,0.08115017,60724.0,60723.0,0.16464]
[1724948571815,0.08115017,60725.0,60724.0,0.164638]
[1724948572303,0.08115017,60726.0,60725.0,0.164634]
[1724948572498,0.08115017,60728.0,60727.0,0.16463]
[1724948572692,0.08115017,60728.0,60727.0,0.44463]
[1724948572996,0.08139718,60731.0,60730.0,0.082311]
[1724948573197,0.00024701,60731.0,60730.0,0.082311]
[1724948573613,0.00024701,60731.0,60730.0,0.164622]
[1724948573904,0.00024701,60731.0,60730.0,1.340933]
[1724948574302,0.00024701,60731.0,60730.0,1.341933]
[1724948574603,0.00024701,60731.0,60730.0,0.165622]
[1724948575210,0.08115017,60739.0,60730.0,0.18516494]
[1724948575397,0.16281577,61224.0,60730.0,0.18516494]
[1724948575398,0.08115017,60744.0,60739.0,0.082298]
[1724948575599,0.08115017,60744.0,60743.0,0.082293]
[1724948575812,0.08115017,60745.0,60744.0,0.082292]
[1724948576106,0.443088,60747.0,60744.0,0.082292]
[1724948576107,0.08112946,60746.0,60744.0,0.082292]
[1724948576497,0.08112946,60746.0,60742.0,0.00823457]
[1724948576498,0.08112946,60746.0,60745.0,0.08229]
[1724948576999,0.44192946,60747.0,60746.0,0.082289]
[1724948577203,0.3608,60747.0,60746.0,0.082289]
[1724948579494,0.3608,60747.0,60746.0,0.083289]
[1724948580003,0.00024701,60751.0,60750.0,0.082283]
[1724948581907,0.00436331,60751.0,60750.0,0.082283]
[1724948582505,0.00436331,60751.0,60750.0,0.083283]
[1724948583603,0.00436331,60751.0,60750.0,0.084283]
[1724948583811,0.08664531,60751.0,60750.0,0.002]
[1724948584004,0.44744531,60751.0,60750.0,0.002]
[1724948584202,0.08664531,60751.0,60750.0,0.002]
[1724948585101,0.08664531,60751.0,60750.0,0.084283]
[1724948585701,0.00436331,60751.0,60750.0,0.084283]
[1724948586513,0.00436331,60751.0,60750.0,0.364283]
[1724948587712,0.00436331,60751.0,60750.0,0.084283]
[1724948590011,0.08664531,60751.0,60750.0,0.084283]
[1724948590399,0.10699106,60751.0,60750.0,0.084283]